[Event "Odense-ch Mester-2 2018"]
[Site "Odense"]
[Date "2018.10.12"]
[Round "1"]
[White "Fogh, Jens Olaf Svanholm"]
[Black "Jensen, Tobias Ilsoe"]
[Result "0-1"]
[ECO "A45"]
[WhiteElo "2079"]
[BlackElo "2099"]
[Annotator "NA RC"]
[PlyCount "150"]
[EventDate "2018.10.12"]
[EventType "tourn"]
[EventCountry "DEN"]
[SourceTitle "playchess.com"]
[Source "ChessBase"]
[SourceQuality "1"]
[TimeControl "40/5400+30:1800+30"]

{[%evp 40,149,-293,-272,-270,-305,-171,-364,-309,-315,-28,-51,0,-125,-121,-131,-132,-124,-142,-124,-136,-125,-147,-160,-179,-190,-49,-73,0,-89,-111,-97,-94,-108,-56,-96,-94,-192,-95,-179,-75,-208,-208,-268,-165,-357,-397,-431,-308,-377,-150,-333,-318,-458,-331,-463,-334,-415,-428,-418,-142,-156,-88,-68,-8,-229,-244,-303,-361,-307,-279,-427,-595,-888,-687,-878,-837,-789,-1166,-12846,-29978,-12847,-12848,-12849,-29987,-29988,-29989,-29989,-29990,32767,32767,32767,-29992,-29993,-29992,-29992,-29992,-29992,32767,32767,32767,32767,32767,32767,-29997,-29993,-5838,-29998,-29998,-29998,-29999,-29999]} 1. d4 {[%emt 0:00:00]} Nf6 {[%emt 0:00:00]} 2. e3 {[%emt 0:00:06]} e6 {[%emt 0:00:00]} 3. Bd3 {[%emt 0:00:29]} c5 {[%emt 0:00:45]} 4. Nf3 {[%emt 0:02:01]} b6 {[%emt 0:00:47]} 5. O-O {[%emt 0:02:37]} Bb7 {[%emt 0:00:45]} 6. Nbd2 {[%emt 0:02:50]} Be7 {[%emt 0:01:19]} 7. c3 {[%emt 0:05:39]} cxd4 {[%emt 0:01:37]} 8. exd4 {[%emt 0:01:37]} O-O {[%emt 0:01:05]} 9. Qe2 {[%emt 0:02:45]} d6 {[%emt 0:02:23]} 10. Ng5 {[%emt 0:09:31] A47: 1 d4 Nf6 2 Nf3 b6: Torre, London and Colle Systems} (10. Re1 Nbd7 11. c4 Re8 12. b3 e5 13. Bb2 Bf8 14. Bc2 e4 15. Nh4 d5 16. Nf5 Nb8 17. f3 g6 18. Ne3 exf3 19. Qxf3 {0-1 (40) Andriasian,Z (2508)-Lputian,S (2634) Yerevan 2007}) 10... Nbd7 {[%emt 0:04:15]} 11. f4 {[%emt 0:01:30]} Re8 {[%emt 0:04:46]} 12. Ndf3 {[%emt 0:04:35]} h6 $146 {[%emt 0:04:39]} ({Predecessor:} 12... Nf8 13. Bb5 h6 14. Bxe8 Qxe8 15. Nh3 Ne4 16. Nf2 f5 17. Nxe4 Bxe4 {0-1 (42) Rosin,W (2240)-Bischoff,K (2385) Germany 1982}) 13. Nh3 {[%emt 0:28:58]} Qc7 {[%emt 0:10:23]} 14. Bd2 {[%emt 0:04:21]} e5 {[%emt 0:07:48]} 15. Bb5 {[%emt 0:05:14]} a6 {[%emt 0:05:43]} 16. Ba4 {[%emt 0:00:12]} b5 {[%emt 0:01:03]} 17. Bb3 {[%emt 0:00:21]} Bf8 {[%emt 0:02:40]} 18. Qf2 {[%emt 0:09:56]} e4 {[%emt 0:12:39]} 19. Nfg5 {[%emt 0:02:47]} d5 {[%emt 0:01:59]} 20. Rae1 {[%emt 0:02:26]} Nb6 {[%emt 0:03:42]} 21. Qh4 {[%emt 0:00:49]} Bd6 {[%emt 0:05:25]} 22. Re3 {[%emt 0:02:08]} Re7 {[%emt 0:08:35]} (22... hxg5 23. Nxg5 Nc4 24. Rh3 $17) (22... Bc8 $142 23. Rg3 Qe7) 23. g3 $2 {[%emt 0:04:29]} (23. Rg3 {was called for.}) 23... Bc8 {[%emt 0:03:49]} 24. Nf2 {[%emt 0:00:20]} hxg5 $2 {[%emt 0:01:58]} ({Better is} 24... a5 $19 25. a3 Nc4 26. Bxc4 Qxc4) 25. fxg5 {[%emt 0:00:05]} Nh7 {[%emt 0:01:29]} 26. g4 {[%emt 0:00:34] [#]} (26. Nxe4 $1 $11 Nf8 {[#]} 27. Nf6+ $1 {[%mdl 512]} gxf6 28. gxf6 Rxe3 29. Qh6) 26... Nxg5 $1 {[%emt 0:03:04]} 27. Qxg5 {[%emt 0:00:56] [#]} Bf4 $1 {[%emt 0:01:03]} ({Resist} 27... Bxh2+ 28. Kg2 $15) 28. Qh4 {[%emt 0:01:15]} Bxe3 {[%emt 0:00:25]} 29. Bxe3 {[%emt 0:00:03]} Qd7 {[%emt 0:02:44]} 30. h3 {[%emt 0:01:04]} a5 {[%emt 0:00:30]} 31. Nd1 {[%emt 0:01:09]} a4 {[%emt 0:00:43]} 32. Bc2 {[%emt 0:00:07]} Nc4 {[%emt 0:04:03]} (32... Qe8 $19 33. Bf4 Nc4) 33. Rf5 {[%emt 0:00:10]} g6 {[%emt 0:01:48] [#]} ({Black should play} 33... Bb7 $17 34. Rh5 f6) 34. Bg5 {[%emt 0:00:27]} (34. Rh5 $1 $11 {[%mdl 512] remains equal.} gxh5 35. Qg5+ Kh7 36. Qh6+ Kg8 37. Qg5+ Kh7 38. Qxh5+ Kg8 39. Qg5+ Kh7 40. Qh6+ Kg8 41. Qg5+ Kh7 42. Qh6+ Kg8 43. Qg5+) 34... Re6 {[%emt 0:01:30] [#]} 35. Bf6 $1 {[%emt 0:01:07]} Rxf6 $1 {[%emt 0:00:05]} 36. Rxf6 {[%emt 0:00:08]} Ra6 {[%emt 0:01:03]} 37. Rxa6 {[%emt 0:01:56]} Bxa6 {[%emt 0:00:01]} 38. Qg3 {[%emt 0:00:31] [#]} (38. Qf6 $17) 38... Bc8 {[%emt 0:00:53]} ({Better is} 38... Qe7 $1 $19 39. Qf2 Qg5) 39. b3 {[%emt 0:00:56]} (39. Kg2 $17) 39... axb3 {[%emt 0:00:19]} (39... Na3 $142 40. Qf2 Qc6 41. bxa4 bxa4) 40. axb3 {[%emt 0:02:13]} (40. Bxb3 $15 Qa7 41. Ne3) 40... Nd2 {[%emt 0:01:37]} 41. b4 {[%emt 0:11:37]} (41. Kf2 {might work better.}) 41... Qc6 {[%emt 0:03:02]} (41... Qa7 $142 42. Qf2 Nf3+ 43. Kh1 Qa1) 42. Qf4 $2 {[%emt 0:07:15]} (42. Qf2 Nf3+ 43. Kh1) 42... Nf3+ {[%emt 0:01:07]} 43. Kf2 {[%emt 0:00:28] [#]} Nxd4 $1 {[%emt 0:06:02]} 44. Bb1 {[%emt 0:03:00]} Ne6 {[%emt 0:00:51]} (44... Nf3 $19 45. Bd3 Qb6+ 46. Ne3 g5) 45. Qd2 $2 {[%emt 0:01:15]} (45. Qe5 $17) 45... Bb7 {[%emt 0:02:27]} 46. Ne3 {[%emt 0:01:09]} (46. Ke1 $142) 46... Qc7 {[%emt 0:02:26]} 47. Ng2 $2 {[%emt 0:06:01]} (47. Nf1) 47... Qe5 {[%emt 0:02:06]} 48. Ba2 {[%emt 0:00:43]} d4 {[%emt 0:02:21]} 49. cxd4 {[%emt 0:00:20]} Nxd4 {[%emt 0:03:05]} (49... Qf6+ $19 50. Kg1 Nxd4) 50. Qf4 {[%emt 0:00:49]} Qxf4+ {[%emt 0:03:50]} 51. Nxf4 {[%emt 0:00:02]} Kg7 {[%emt 0:00:58]} (51... g5 $17 52. Nd5 Kg7) 52. Bb1 $2 {[%emt 0:03:28] [#]} (52. Bd5 $11 Bxd5 53. Nxd5) 52... Kf6 $1 {[%emt 0:01:22]} 53. Ke3 {[%emt 0:00:42]} Ke5 {[%emt 0:00:59]} 54. h4 {[%emt 0:00:16]} Bc6 {[%emt 0:03:01]} 55. h5 {[%emt 0:00:37]} gxh5 {[%emt 0:01:20]} 56. Nxh5 {[%emt 0:00:02]} f5 {[%emt 0:01:34]} 57. Nf4 {[%emt 0:01:24]} fxg4 {[%emt 0:00:59]} 58. Ng6+ {[%emt 0:00:20]} Kf6 {[%emt 0:00:44]} 59. Bxe4 {[%emt 0:00:55]} Bxe4 {[%emt 0:00:21]} 60. Nf4 {[%emt 0:00:27]} Ke5 {[%emt 0:00:27]} 61. Nh5 {[%emt 0:00:05]} Nf5+ {[%emt 0:00:49]} 62. Kf2 {[%emt 0:00:11]} Bd5 {[%emt 0:00:37]} 63. Kg1 {[%emt 0:00:12]} Bf7 {[%emt 0:00:07]} 64. Kh2 {[%emt 0:00:04]} Bxh5 {[%emt 0:00:05]} 65. Kg1 {[%emt 0:00:04]} Kd4 {[%emt 0:00:07]} 66. Kh2 {[%emt 0:00:03]} Kc4 {[%emt 0:00:05]} 67. Kg1 {[%emt 0:00:03]} Kxb4 {[%emt 0:00:13]} 68. Kh2 {[%emt 0:00:02]} Kc3 {[%emt 0:00:07]} 69. Kg1 {[%emt 0:00:03]} b4 {[%emt 0:00:06]} 70. Kh2 {[%emt 0:00:01]} b3 {[%emt 0:00:09]} 71. Kg2 {[%emt 0:00:02]} b2 {[%emt 0:00:14]} 72. Kh2 {[%emt 0:00:01]} b1=Q {[%emt 0:00:24]} 73. Kg2 {[%emt 0:00:02]} Qc2+ {[%emt 0:00:24]} 74. Kh1 {[%emt 0:00:03]} Ne3 {[%emt 0:00:15]} 75. Kg1 {[%emt 0:00:03]} Qg2# {[%emt 0:00:05]} 0-1

[Event "Odense-ch Mester-2 2018"]
[Site "Odense"]
[Date "2018.10.12"]
[Round "1"]
[White "Thybo, Thomas Sondergaard"]
[Black "Hoiberg, Nina"]
[Result "1-0"]
[ECO "A45"]
[WhiteElo "2016"]
[BlackElo "2091"]
[Annotator "NA RC"]
[PlyCount "101"]
[EventDate "2018.10.12"]
[EventType "tourn"]
[EventCountry "DEN"]
[SourceTitle "playchess.com"]
[Source "ChessBase"]
[SourceQuality "1"]
[TimeControl "40/5400+30:1800+30"]

1. d4 {[%emt 0:00:00]} Nf6 {[%emt 0:01:13]} 2. Bg5 {[%emt 0:00:00]} d5 {[%emt 0:01:24]} 3. Bxf6 {[%emt 0:00:16]} exf6 {[%emt 0:00:19]} 4. e3 {[%emt 0:00:08]} Bd6 {[%emt 0:01:03]} 5. g3 {[%emt 0:01:17]} c6 {[%emt 0:00:56] D00: 1 d4 d5: Unusual lines} 6. Bg2 {[%emt 0:00:07]} Qb6 {[%emt 0:04:08]} 7. b3 {[%emt 0:01:01]} a5 {[%emt 0:01:03]} 8. Nd2 $146 {[%emt 0:00:29]} ({Predecessor:} 8. a4 Be6 9. Ne2 O-O 10. O-O Na6 11. Nd2 Rfd8 12. c3 h6 13. Qb1 {1-0 (47) Kotronias,V (2579)-Rigopoulos Tsigkos,A (2066) Nikaia 2013}) 8... a4 {[%emt 0:05:18]} 9. c4 {[%emt 0:05:17]} Bb4 {[%emt 0:03:23]} 10. Ngf3 {[%emt 0:01:38]} Bf5 {[%emt 0:07:12]} 11. cxd5 {[%emt 0:00:58]} cxd5 {[%emt 0:00:37]} 12. Nh4 {[%emt 0:03:05]} Be6 {[%emt 0:07:47]} 13. O-O {[%emt 0:01:04]} Qa5 {[%emt 0:01:39]} 14. Nhf3 {[%emt 0:05:42]} a3 {[%emt 0:06:06]} 15. Rc1 {[%emt 0:01:54]} O-O {[%emt 0:02:37]} 16. Nb1 {[%emt 0:00:16]} Ra6 {[%emt 0:01:54]} 17. Ne1 {[%emt 0:00:15]} Rc6 {[%emt 0:03:03]} 18. Nd3 {[%emt 0:01:02]} Rxc1 {[%emt 0:02:22]} 19. Qxc1 {[%emt 0:00:08]} Rc8 {[%emt 0:00:10]} 20. Qd1 {[%emt 0:00:04]} Na6 {[%emt 0:01:23]} 21. Qe2 {[%emt 0:03:21]} h6 {[%emt 0:15:42]} 22. g4 {[%emt 0:01:18]} Bd7 {[%emt 0:08:47]} 23. Rc1 {[%emt 0:02:08]} Rxc1+ {[%emt 0:01:04]} 24. Nxc1 {[%emt 0:00:09]} Bd6 {[%emt 0:00:24]} 25. h3 Bb5 {[%emt 0:06:40]} 26. Qd2 {[%emt 0:01:59]} Bb4 {[%emt 0:07:15]} 27. Qc2 {[%emt 0:00:05]} Qc7 {[%emt 0:00:13]} 28. Qxc7 {[%emt 0:01:30]} Nxc7 {[%emt 0:00:20]} 29. Bf1 {[%emt 0:00:06]} Kf8 {[%emt 0:03:25]} 30. Bxb5 {[%emt 0:00:30]} Nxb5 {[%emt 0:00:03]} 31. Nd3 {[%emt 0:00:13]} Bd6 {[%emt 0:00:55]} 32. Kf1 {[%emt 0:00:34]} Ke7 {[%emt 0:00:39]} 33. Ke2 {[%emt 0:00:39]} f5 {[%emt 0:00:35]} 34. Kf3 {[%emt 0:08:06]} fxg4+ {[%emt 0:00:40]} 35. hxg4 {[%emt 0:00:13]} g6 {[%emt 0:00:22]} 36. Nc1 {[%emt 0:00:33]} h5 {[%emt 0:00:55]} 37. gxh5 {[%emt 0:00:18]} gxh5 {[%emt 0:00:05]} 38. Ne2 {[%emt 0:00:05]} Nc7 {[%emt 0:03:23]} 39. Ng3 {[%emt 0:01:05]} Bb4 {[%emt 0:02:02]} 40. Nxh5 {[%emt 0:00:41]} Ne6 {[%emt 0:00:43]} 41. Ng3 {[%emt 0:30:20]} Nd8 {[%emt 0:31:38]} 42. Ne2 {[%emt 0:00:38]} Nc6 {[%emt 0:00:17]} 43. Nf4 {[%emt 0:01:40]} Kd6 {[%emt 0:00:00]} 44. Kg4 {[%emt 0:00:00]} Ba5 {[%emt 0:00:00]} 45. Nxa3 {[%emt 0:00:00]} Nb4 {[%emt 0:00:00]} 46. Nb5+ {[%emt 0:00:00]} Kc6 {[%emt 0:00:00]} 47. a4 {[%emt 0:00:00]} Nc2 {[%emt 0:00:00]} 48. Nd3 {[%emt 0:00:00]} Na1 {[%emt 0:00:00]} 49. b4 {[%emt 0:00:00]} Bd8 {[%emt 0:00:00]} 50. Ne5+ {[%emt 0:00:00]} Kb6 {[%emt 0:00:00]} 51. Nc3 $18 {[%emt 0:00:00]} 1-0

[Event "Odense-ch Mester-2 2018"]
[Site "Odense"]
[Date "2018.10.12"]
[Round "1"]
[White "Knudsen, Martin"]
[Black "Liu, Casper"]
[Result "1/2-1/2"]
[ECO "E92"]
[WhiteElo "2014"]
[BlackElo "2013"]
[Annotator "NA RC"]
[PlyCount "118"]
[EventDate "2018.10.12"]
[EventType "tourn"]
[EventCountry "DEN"]
[SourceTitle "playchess.com"]
[Source "ChessBase"]
[SourceQuality "1"]
[TimeControl "40/5400+30:1800+30"]

1. d4 {[%emt 0:00:00]} Nf6 {[%emt 0:00:00]} 2. c4 {[%emt 0:00:00]} g6 {[%emt 0:00:00]} 3. Nc3 {[%emt 0:00:22]} Bg7 {[%emt 0:00:00]} 4. e4 {[%emt 0:00:50]} d6 {[%emt 0:00:00]} 5. Nf3 {[%emt 0:00:55]} O-O {[%emt 0:00:04]} 6. Be2 {[%emt 0:00:30]} e5 {[%emt 0:02:14]} 7. dxe5 {[%emt 0:01:33]} dxe5 {[%emt 0:00:20]} 8. Qxd8 {[%emt 0:00:13]} Rxd8 {[%emt 0:00:05]} 9. Bg5 {[%emt 0:00:13]} c6 {[%emt 0:16:34]} 10. Nxe5 {[%emt 0:06:42]} Re8 {[%emt 0:00:44]} 11. f4 {[%emt 0:00:15]} h6 {[%emt 0:00:33]} 12. Bh4 {[%emt 0:00:45]} g5 {[%emt 0:03:05] E92: King's Indian: Classical: 6 Be2 e5: 7 dxe5, 7 Be3 and Petrosian System without 7...Nbd7} 13. Bg3 {[%emt 0:07:47]} gxf4 {[%emt 0:04:22]} 14. Bxf4 {[%emt 0:00:12]} Nxe4 {[%emt 0:00:13]} 15. Nxe4 {[%emt 0:01:14]} Bxe5 {[%emt 0:00:06]} 16. Bxe5 {[%emt 0:14:56]} Rxe5 {[%emt 0:01:10]} 17. Nd2 $146 {[%emt 0:01:42]} ({Predecessor:} 17. Nf6+ Kg7 18. Rf1 Na6 19. Nh5+ Kg8 20. O-O-O {1-0 (43) Tisdall,J (2430)-Stokke,K (2330) Oslo 2007}) 17... Bg4 {[%emt 0:02:58]} 18. Nf3 {[%emt 0:00:10]} Bxf3 {[%emt 0:00:03]} 19. gxf3 {[%emt 0:00:07]} Na6 {[%emt 0:00:03]} 20. Kf2 {[%emt 0:00:34]} Rae8 {[%emt 0:04:19]} 21. Rae1 {[%emt 0:04:57]} Nb4 {[%emt 0:00:52]} 22. a3 {[%emt 0:00:22]} Nc2 {[%emt 0:01:10]} 23. Reg1+ {[%emt 0:00:15]} Kf8 {[%emt 0:00:04]} 24. Bd3 {[%emt 0:01:28]} Rd8 {[%emt 0:00:39]} 25. Be4 {[%emt 0:07:26]} Rd2+ {[%emt 0:02:12]} 26. Kg3 {[%emt 0:00:07]} Nd4 {[%emt 0:00:33]} 27. Rd1 {[%emt 0:02:50]} Ne2+ {[%emt 0:01:21]} 28. Kf2 {[%emt 0:01:12]} Rxb2 {[%emt 0:01:07]} 29. Rb1 {[%emt 0:00:28]} Ra2 {[%emt 0:16:17]} 30. Rxb7 {[%emt 0:12:45]} f5 {[%emt 0:00:45]} 31. Bb1 {[%emt 0:00:08]} Rd2 {[%emt 0:01:56]} 32. Ke1 {[%emt 0:05:04]} Rd4 {[%emt 0:00:18]} 33. Kf2 {[%emt 0:00:10]} f4 {[%emt 0:01:46]} 34. Re1 {[%emt 0:02:57]} Rd2 {[%emt 0:01:36]} 35. Kf1 {[%emt 0:00:19]} Re3 {[%emt 0:01:23]} 36. Be4 {[%emt 0:01:01]} Nc3 {[%emt 0:00:27]} 37. Rb3 {[%emt 0:08:31]} Nd1 {[%emt 0:09:41]} 38. Rbxe3 {[%emt 0:02:48]} (38. Rexe3 $1 $11 Nxe3+ 39. Ke1 Rxh2 40. c5) 38... Nxe3+ {[%emt 0:00:08]} 39. Kg1 {[%emt 0:00:16]} Ke7 {[%emt 0:03:10]} 40. Bxc6 {[%emt 0:00:41]} Kd6 {[%emt 0:00:25]} 41. Bd5 {[%emt 0:30:27]} Rg2+ {[%emt 0:30:34]} (41... Kc5 $15 {keeps the upper hand.}) 42. Kh1 {[%emt 0:00:10]} Ra2 {[%emt 0:00:12]} 43. h4 {[%emt 0:01:53]} Rxa3 {[%emt 0:00:29]} 44. Bf7 {[%emt 0:00:40]} (44. Rg1 $11 {remains equal.}) 44... a5 {[%emt 0:02:08]} 45. Rb1 {[%emt 0:00:15]} Kc6 {[%emt 0:03:19]} 46. Rb5 $1 {[%emt 0:00:45]} a4 {[%emt 0:01:40]} 47. Rh5 {[%emt 0:01:24]} Rb3 {[%emt 0:09:33]} (47... Ra1+ $15 48. Kh2 Ra2+ 49. Kh1 a3 50. Rxh6+ Kb7) 48. Be8+ {[%emt 0:01:43]} Kc7 {[%emt 0:01:50]} 49. Bxa4 {[%emt 0:00:50]} Rb6 {[%emt 0:00:27]} 50. Bb5 {[%emt 0:02:14]} Rd6 {[%emt 0:02:29]} 51. Kg1 {[%emt 0:03:48]} Re6 {[%emt 0:02:31] [#]} (51... Rg6+ $11 {remains equal.} 52. Kf2 Rg2+ 53. Ke1 Kb6) 52. c5 $1 {[%emt 0:04:15]} Rg6+ {[%emt 0:00:00]} 53. Kh1 {[%emt 0:00:00]} Rf6 {[%emt 0:00:00]} 54. Re5 {[%emt 0:00:00]} ({Better is} 54. Bd3 $16) 54... Nf5 {[%emt 0:00:00]} 55. h5 {[%emt 0:00:00]} Nd4 {[%emt 0:00:00]} 56. Re7+ {[%emt 0:00:00]} Kc8 {[%emt 0:00:00]} 57. Re8+ {[%emt 0:00:00]} Kc7 {[%emt 0:00:05]} 58. Re7+ {[%emt 0:00:00]} Kc8 {[%emt 0:00:07]} 59. Re8+ $11 {[%emt 0:00:00]} Kc7 {[%emt 0:00:07]} 1/2-1/2

[Event "Odense-ch Mester-2 2018"]
[Site "Odense"]
[Date "2018.10.14"]
[Round "4"]
[White "Jacobsen, Steen Hefsgaard"]
[Black "Maagaard, Markus"]
[Result "0-1"]
[ECO "E34"]
[WhiteElo "2084"]
[BlackElo "1769"]
[Annotator "NA"]
[PlyCount "108"]
[EventDate "2018.10.12"]
[EventType "tourn"]
[EventCountry "DEN"]
[SourceTitle "playchess.com"]
[Source "ChessBase"]
[SourceQuality "1"]
[TimeControl "40/5400+30:1800+30"]

{[%evp 14,106,58,35,38,49,27,16,7,0,8,17,7,-11,-24,32767,32767,-66,-39,32767,-45,-63,-39,-83,-85,-106,32767,32767,32767,32767,32767,32767,-87,32767,-66,-116,-12,-76,0,-166,-140,-166,-137,-187,-181,32767,32767,-187,-190,-187,-162,-156,-161,-155,-156,-156,-161,-155,32767,32767,32767,32767,32767,32767,32767,32767,32767,32767,-324,-302,-310,-298,-220,-277,-239,32767,32767,32767,32767,32767,-394,-682,32767,32767,32767,32767,32767,32767,32767,-1009,32767,-1240,-2826,-1745,-12837]} 1. d4 {[%emt 0:00:00]} Nf6 {[%emt 0:00:00]} 2. c4 {[%emt 0:00:00]} e6 {[%emt 0:00:00]} 3. Nc3 {[%emt 0:00:28]} Bb4 {[%emt 0:00:00]} 4. Qc2 {[%emt 0:01:51]} d5 {[%emt 0:00:00]} 5. cxd5 {[%emt 0:03:47] E34: Nimzo-Indian: Classical: 4...d5} Qxd5 {[%emt 0:00:03]} (5... exd5 6. Bg5 h6 7. Bh4 c5 8. dxc5 g5 9. Bg3 Ne4 10. e3 Qa5 11. Nge2 Bf5 12. Bxb8 Rxb8 13. Nd4 Bd7 14. Nb3 Bxc3+ 15. bxc3 Qxc3+ 16. Qxc3 Nxc3 17. Bd3 Ke7 {½-½ (37) Duda,J (2739)-Karjakin,S (2760) Batumi 2018}) 6. a3 {[%emt 0:00:57]} Bxc3+ {[%emt 0:00:57]} 7. bxc3 {[%emt 0:01:14]} Qf5 $146 {[%emt 0:02:27]} ({Predecessor:} 7... c5 8. e3 b6 9. Nf3 Bb7 10. Bb2 cxd4 11. cxd4 O-O 12. Bc4 Qh5 13. Qe2 Ba6 14. Ne5 Qxe2+ 15. Kxe2 Bxc4+ 16. Nxc4 {1-0 (25) Kuljasevic,D (2554)-Ashiku,F (2300) Durres 2014}) 8. Qxf5 {[%emt 0:04:13]} exf5 {[%emt 0:00:09]} 9. e3 {[%emt 0:02:13]} O-O {[%emt 0:03:22]} 10. Nf3 {[%emt 0:01:37]} Re8 {[%emt 0:05:05]} 11. Ne5 {[%emt 0:03:38]} Nbd7 {[%emt 0:04:18]} 12. Nxd7 {[%emt 0:03:51]} Bxd7 {[%emt 0:00:08]} 13. f3 {[%emt 0:03:45]} Nd5 {[%emt 0:04:55]} 14. Rb1 {[%emt 0:03:00]} b6 {[%emt 0:03:37]} 15. Kf2 {[%emt 0:05:32]} Nxc3 {[%emt 0:01:20]} 16. Rb3 {[%emt 0:00:11]} Nd5 {[%emt 0:03:46]} 17. Bc4 {[%emt 0:00:08]} Nf6 {[%emt 0:03:58]} 18. Bb2 {[%emt 0:05:48]} (18. Be2 $11) 18... Be6 {[%emt 0:06:13]} 19. Rc3 {[%emt 0:08:25]} Bxc4 {[%emt 0:04:20]} 20. Rxc4 {[%emt 0:01:50]} Nd5 {[%emt 0:00:07]} 21. Re1 {[%emt 0:00:39]} Re7 {[%emt 0:09:06]} 22. Bc1 {[%emt 0:03:21]} Rae8 {[%emt 0:02:27]} 23. Bd2 {[%emt 0:00:38]} f6 {[%emt 0:12:30]} 24. g3 {[%emt 0:06:52]} g5 {[%emt 0:06:45]} (24... h5 $17) 25. h3 {[%emt 0:06:15] [#]} Kf7 {[%emt 0:01:48]} ({Black should play} 25... h5 $1 $17 26. h4 g4) 26. Bc1 $2 {[%emt 0:03:45]} (26. g4 $11) 26... h5 {[%emt 0:00:39]} 27. Bd2 {[%emt 0:00:19]} g4 {[%emt 0:04:08]} 28. h4 {[%emt 0:02:13]} gxf3 {[%emt 0:04:10]} 29. Kxf3 {[%emt 0:01:30]} Re4 {[%emt 0:00:09]} 30. Re2 {[%emt 0:01:47]} R8e7 {[%emt 0:03:02]} 31. Re1 {[%emt 0:01:08]} a5 {[%emt 0:01:04]} 32. Rcc1 {[%emt 0:03:00]} Ke6 {[%emt 0:00:44]} 33. Rc6+ {[%emt 0:01:22]} Kd7 {[%emt 0:00:15]} 34. Rcc1 {[%emt 0:00:16]} Rg7 {[%emt 0:02:06]} 35. Rg1 {[%emt 0:00:41]} Rg8 {[%emt 0:01:42]} 36. Rc4 {[%emt 0:01:58]} Rxh4 {[%emt 0:00:53]} 37. Rf1 {[%emt 0:02:01]} Rhg4 {[%emt 0:01:33]} 38. Ke2 {[%emt 0:00:34]} Rxg3 {[%emt 0:01:15]} 39. Rxf5 {[%emt 0:00:09]} R3g5 {[%emt 0:01:57]} 40. Rf3 {[%emt 0:01:27]} f5 {[%emt 0:05:04]} 41. Rc1 {[%emt 0:31:48]} Rg2+ {[%emt 0:07:59]} 42. Kd3 {[%emt 0:00:00]} Ne7 {[%emt 0:01:14]} 43. Rh1 {[%emt 0:00:00]} Rg1 {[%emt 0:01:19]} 44. Rxh5 {[%emt 0:00:00]} Ra1 {[%emt 0:00:08]} 45. Rh7 {[%emt 0:00:00]} Rxa3+ {[%emt 0:00:22]} 46. Bc3 {[%emt 0:00:00]} Ke6 {[%emt 0:02:34]} 47. e4 $19 {[%emt 0:00:00]} fxe4+ {[%emt 0:00:33]} 48. Kxe4 {[%emt 0:00:00]} Rg4+ {[%emt 0:00:31]} 49. Kd3 {[%emt 0:00:00]} Nd5 {[%emt 0:04:26]} 50. Rh6+ {[%emt 0:00:00]} Kd7 {[%emt 0:00:07]} 51. Rh7+ {[%emt 0:00:00]} Kc6 {[%emt 0:00:10]} 52. Rh6+ {[%emt 0:00:23]} Kb7 {[%emt 0:00:16]} 53. Kc4 {[%emt 0:00:12]} Nxc3 {[%emt 0:00:11]} 54. Rxc3 {[%emt 0:00:03]} b5+ {[%emt 0:00:12]} 0-1

[Event "Odense-ch Mester-2 2018"]
[Site "Odense"]
[Date "2018.10.14"]
[Round "4"]
[White "Wegger, Alfred Hedelykke"]
[Black "Velarde, Andrew"]
[Result "0-1"]
[ECO "B00"]
[WhiteElo "1705"]
[BlackElo "1728"]
[Annotator "NA RC"]
[PlyCount "68"]
[EventDate "2018.10.12"]
[EventType "tourn"]
[EventCountry "DEN"]
[SourceTitle "playchess.com"]
[Source "ChessBase"]
[SourceQuality "1"]
[TimeControl "40/5400+30:1800+30"]

1. e4 {[%emt 0:00:10]} Nc6 {[%emt 0:00:00]} 2. d4 {[%emt 0:01:34]} d5 {[%emt 0:00:00]} 3. e5 {[%emt 0:03:20]} Bf5 {[%emt 0:00:00]} 4. Bb5 {[%emt 0:02:17]} e6 {[%emt 0:03:09]} 5. Nf3 {[%emt 0:02:54]} h6 {[%emt 0:01:51]} 6. O-O {[%emt 0:03:52]} Nge7 {[%emt 0:00:29]} 7. Nbd2 {[%emt 0:04:38]} a6 {[%emt 0:01:44]} 8. Be2 {[%emt 0:04:15]} Nb4 {[%emt 0:04:04]} 9. c3 {[%emt 0:06:22]} Bc2 {[%emt 0:00:40]} 10. Qe1 {[%emt 0:00:38]} Nd3 {[%emt 0:00:16]} 11. Bxd3 {[%emt 0:00:15]} Bxd3 {[%emt 0:00:06]} 12. Nb3 {[%emt 0:05:58]} Ng6 {[%emt 0:04:04]} 13. Be3 {[%emt 0:05:47]} b6 {[%emt 0:09:45]} 14. Qd2 {[%emt 0:06:24]} Bxf1 {[%emt 0:00:17]} 15. Rxf1 {[%emt 0:00:03]} Be7 {[%emt 0:01:19]} 16. g3 {[%emt 0:05:02]} a5 {[%emt 0:05:10]} 17. a3 {[%emt 0:02:30]} a4 {[%emt 0:04:43]} 18. Nc1 {[%emt 0:01:35]} c5 {[%emt 0:01:48]} 19. Nd3 {[%emt 0:01:09]} Rc8 {[%emt 0:06:18]} 20. Qc2 {[%emt 0:01:12]} Qd7 {[%emt 0:00:40]} 21. Re1 {[%emt 0:01:04]} cxd4 {[%emt 0:10:58]} 22. Nxd4 {[%emt 0:01:33]} Bc5 {[%emt 0:02:34]} 23. Qd2 {[%emt 0:01:04]} Ne7 {[%emt 0:08:13]} 24. Kg2 {[%emt 0:04:00]} Bxd4 {[%emt 0:08:18]} 25. Bxd4 {[%emt 0:00:27]} Qb5 {[%emt 0:01:33]} 26. f4 {[%emt 0:03:16]} Rc4 {[%emt 0:03:38]} 27. Qf2 {[%emt 0:02:06]} Nf5 {[%emt 0:04:35]} 28. Be3 {[%emt 0:03:44]} Re4 {[%emt 0:06:58]} 29. Nb4 {[%emt 0:01:51]} Nxe3+ {[%emt 0:00:46]} 30. Rxe3 Rxe3 {[%emt 0:01:36]} 31. Qxe3 {[%emt 0:00:12]} O-O {[%emt 0:00:29]} 32. Qd2 {[%emt 0:00:48]} Rc8 {[%emt 0:01:46]} 33. Qf2 {[%emt 0:04:24]} Rc4 {[%emt 0:01:56]} 34. Kh3 {[%emt 0:00:44]} Re4 {[%emt 0:01:02]} 0-1